fUST/lending_fUST_20240612
["ID","MTS","AMOUNT","RATE_DAILY","PERIOD"]
[329202378,1718175052591,-500.0,0.00016986,2]
[329202379,1718175052600,-500.0,0.00016986,2]
[329202380,1718175052610,-3909.51,0.00016986,2]
[329202381,1718175052621,-500.0,0.00016986,2]
[329202382,1718175052631,-500.0,0.00016986,2]
[329202383,1718175052641,-500.0,0.00016986,2]
[329202384,1718175052653,-500.0,0.00016986,2]
[329202385,1718175052663,-161.00519817,0.00016986,2]
[329202386,1718175052673,-500.0,0.00016986,2]
[329202387,1718175052683,-500.0,0.00016986,2]
[329202388,1718175052693,-500.0,0.00016986,2]
[329202389,1718175052703,-500.0,0.00016986,2]
[329202390,1718175052713,-785.84,0.00016986,2]
[329202391,1718175052723,-504.95465891,0.00016986,2]
[329202392,1718175052732,-150.09224169,0.00016986,2]
[329202393,1718175052742,-500.0,0.00016986,2]
[329202394,1718175052753,-500.0,0.00016986,2]
[329202395,1718175052763,-1262.57,0.00016986,2]
[329202396,1718175052783,-270.06174295,0.00016986,2]
[329202397,1718175052792,-500.0,0.00016986,2]
[329202398,1718175052803,-516.39973191,0.00016986,2]
[329202399,1718175052813,-500.0,0.00016986,2]
[329202400,1718175052824,-599.4,0.00016986,2]
[329202401,1718175052834,-500.0,0.00016986,2]
[329202402,1718175052847,-500.0,0.00016986,2]
[329202403,1718175052857,-500.0,0.00016986,2]
[329202404,1718175052867,-500.0,0.00016986,2]
[329202405,1718175052878,-500.0,0.00016986,2]
[329202406,1718175052890,-500.0,0.00016986,2]
[329202407,1718175052902,-1000.0,0.00017,2]
[329202408,1718175052912,-2434.0672529,0.00017119,2]
[329202409,1718175052923,-212.0,0.00017125,2]
[329202410,1718175052932,-1794.97487887,0.00017221,2]
[329202411,1718175052942,-500.0,0.00017259,2]
[329202412,1718175052953,-1250.67,0.00017259,2]
[329202413,1718175052963,-1804.69,0.0001726,2]
[329202414,1718175052973,-500.0,0.0001726,2]
[329202415,1718175052983,-500.0,0.0001726,4]
[329202416,1718175052993,-500.0,0.0001726,2]
[329202417,1718175053003,-316.42574093,0.0001726,2]
[329202418,1718175053014,-500.0,0.0001726,2]
[329202419,1718175053023,-500.0,0.0001726,2]
[329202420,1718175053034,-250.0,0.0001726,2]
[329202421,1718175053044,-500.0,0.0001726,2]
[329202422,1718175053055,-500.0,0.0001726,2]
[329202423,1718175053065,-500.0,0.0001726,2]
[329202424,1718175053074,-500.0,0.0001726,2]
[329202425,1718175053084,-794.15,0.0001726,2]
[329202426,1718175053096,-500.0,0.0001726,2]
[329202427,1718175053106,-500.0,0.0001726,2]
[329202428,1718175053116,-500.0,0.0001726,2]
[329202429,1718175053126,-500.0,0.0001726,2]
[329202430,1718175053135,-500.0,0.0001726,2]
[329202431,1718175053145,-500.0,0.0001726,2]
[329202432,1718175053155,-500.0,0.0001726,2]
[329202433,1718175053165,-500.0,0.0001726,2]
[329202434,1718175053174,-630.79079905,0.0001726,2]
[329202435,1718175053184,-449.0730593,0.0001726,2]
[329202436,1718175053194,-500.0,0.0001726,2]
[329202437,1718175053204,-500.0,0.0001726,2]
[329202438,1718175053215,-500.0,0.0001726,2]
[329202439,1718175053225,-500.0,0.0001726,2]
[329202440,1718175053235,-1010.63,0.0001726,2]
[329202441,1718175053245,-522.27,0.0001726,2]
[329202442,1718175053260,-181.01723756,0.0001726,2]
[329202443,1718175053271,-216.4060918,0.0001726,2]
[329202444,1718175053281,-500.0,0.0001726,2]
[329202445,1718175053293,-500.0,0.0001726,2]
[329202446,1718175053303,-500.0,0.0001726,2]
[329202447,1718175053313,-500.0,0.0001726,2]
[329202448,1718175053324,-2111.48,0.0001726,2]
[329202449,1718175053336,-6297.57,0.0001726,2]
[329202450,1718175053347,-1308.57,0.0001726,2]
[329202451,1718175053357,-500.0,0.0001726,2]
[329202452,1718175053367,-500.0,0.0001726,2]
[329202453,1718175053379,-1067.37,0.0001726,2]
[329202454,1718175053389,-500.0,0.0001726,2]
[329202455,1718175053401,-500.0,0.0001726,2]
[329202456,1718175053411,-500.0,0.0001726,2]
[329202457,1718175053423,-500.0,0.0001726,2]
[329202458,1718175053433,-5181.01,0.0001726,2]
[329202459,1718175053443,-500.0,0.0001726,2]
[329202460,1718175053453,-500.0,0.0001726,2]
[329202461,1718175053463,-3909.51,0.0001726,2]
[329202462,1718175053476,-500.0,0.0001726,2]
[329202463,1718175053486,-500.0,0.0001726,2]
[329202464,1718175053496,-500.0,0.0001726,2]
[329202465,1718175053506,-521.65340863,0.0001726,2]
[329202466,1718175053517,-500.0,0.0001726,2]
[329202467,1718175053527,-500.0,0.0001726,2]
[329202468,1718175053538,-785.84,0.0001726,2]
[329202469,1718175053548,-500.0,0.0001726,2]
[329202470,1718175053558,-500.0,0.0001726,2]
[329202471,1718175053568,-1262.57,0.0001726,2]
[329202472,1718175053578,-505.87696066,0.0001726,2]
[329202473,1718175053588,-500.0,0.0001726,2]
[329202474,1718175053599,-599.4,0.0001726,2]
[329202475,1718175053609,-160.34758777,0.0001726,2]
[329202476,1718175053619,-500.0,0.0001726,2]
[329202477,1718175053630,-494.78784879,0.0001726,2]
[329202478,1718175053640,-500.0,0.0001726,2]
[329202479,1718175053650,-212.0,0.00017265,2]
[329202480,1718175053661,-212.0,0.00017405,2]
[329202481,1718175053672,-500.0,0.00017433,2]
[329202482,1718175053682,-2434.0672529,0.0001751,2]
[329202483,1718175053693,-500.0,0.00017533,2]
[329202484,1718175053704,-1250.67,0.00017533,2]
[329202485,1718175053714,-1804.69,0.00017534,2]
[329202486,1718175053725,-500.0,0.00017534,2]
[329202487,1718175053735,-500.0,0.00017534,4]
[329202488,1718175053745,-500.0,0.00017534,2]
[329202489,1718175053755,-500.0,0.00017534,2]
[329202490,1718175053766,-500.0,0.00017534,2]
[329202491,1718175053776,-250.0,0.00017534,2]
[329202492,1718175053786,-500.0,0.00017534,2]
[329202493,1718175053806,-500.0,0.00017534,2]
[329202494,1718175053816,-505.69946728,0.00017534,2]
[329202495,1718175053826,-500.0,0.00017534,2]
[329202496,1718175053836,-794.15,0.00017534,2]
[329202497,1718175053846,-500.0,0.00017534,2]
[329202498,1718175053856,-366.02163504,0.00017534,2]
[329202499,1718175053867,-500.0,0.00017534,2]
[329202500,1718175053878,-500.0,0.00017534,2]
[329202501,1718175053901,-500.0,0.00017534,2]
[329202502,1718175053912,-635.867111,0.00017534,2]
[329202503,1718175053924,-500.0,0.00017534,2]
[329202504,1718175053934,-500.0,0.00017534,2]
[329202505,1718175053956,-500.0,0.00017534,2]
[329202506,1718175053967,-500.0,0.00017534,2]
[329202507,1718175053977,-500.0,0.00017534,2]
[329202508,1718175053999,-500.0,0.00017534,2]
[329202509,1718175054009,-1010.63,0.00017534,2]
[329202510,1718175054020,-522.27,0.00017534,2]
[329202511,1718175054031,-500.0,0.00017534,2]
[329202512,1718175054041,-500.0,0.00017534,2]
[329202513,1718175054051,-172.43868174,0.00017534,2]
[329202514,1718175054061,-500.0,0.00017534,2]
[329202515,1718175054072,-2111.48,0.00017534,2]
[329202516,1718175054082,-6297.57,0.00017534,2]
[329202517,1718175054093,-1308.57,0.00017534,2]
[329202518,1718175054104,-500.0,0.00017534,2]
[329202519,1718175054114,-500.0,0.00017534,2]
[329202520,1718175054126,-1067.37,0.00017534,2]
[329202521,1718175054136,-500.0,0.00017534,2]
[329202522,1718175054147,-500.0,0.00017534,2]
[329202523,1718175054157,-500.0,0.00017534,2]
[329202524,1718175054167,-209.58979908,0.00017534,2]
[329202525,1718175054178,-5181.01,0.00017534,2]
[329202526,1718175054189,-500.0,0.00017534,2]
[329202527,1718175054200,-512.43162702,0.00017534,2]
[329202528,1718175054210,-3909.51,0.00017534,2]
[329202529,1718175054232,-500.0,0.00017534,2]
[329202530,1718175054243,-594.44080615,0.00017534,2]
[329202531,1718175054258,-500.0,0.00017534,2]
[329202532,1718175054268,-500.0,0.00017534,2]
[329202533,1718175054279,-785.84,0.00017534,2]
[329202534,1718175054290,-395.55217758,0.00017534,2]
[329202535,1718175054300,-500.0,0.00017534,2]
[329202536,1718175054312,-1262.57,0.00017534,2]
[329202537,1718175054323,-500.0,0.00017534,2]
[329202538,1718175054337,-599.4,0.00017534,2]
[329202539,1718175054348,-500.0,0.00017534,2]
[329202540,1718175054359,-500.0,0.00017534,2]
[329202541,1718175054370,-212.0,0.00017545,2]
[329202542,1718175054383,-1975.42229871,0.000176,2]
[329202543,1718175054394,-212.0,0.00017685,2]
[329202544,1718175054405,-1455.28,0.00017806,2]
[329202545,1718175054416,-500.0,0.00017806,2]
[329202546,1718175054429,-1250.67,0.00017807,2]
[329202547,1718175054439,-500.0,0.00017807,2]
[329202548,1718175054450,-1804.69,0.00017808,2]
[329202549,1718175054461,-500.0,0.00017808,2]
[329202550,1718175054471,-500.0,0.00017808,4]
[329202551,1718175054483,-500.0,0.00017808,2]
[329202552,1718175054493,-500.0,0.00017808,2]
[329202553,1718175054504,-500.0,0.00017808,2]
[329202554,1718175054514,-250.0,0.00017808,2]
[329202555,1718175054525,-500.0,0.00017808,2]
[329202556,1718175054535,-500.0,0.00017808,2]
[329202557,1718175054545,-500.0,0.00017808,2]
[329202558,1718175054556,-794.15,0.00017808,2]
[329202559,1718175054565,-500.0,0.00017808,2]
[329202560,1718175054576,-500.0,0.00017808,2]
[329202561,1718175054586,-500.0,0.00017808,2]
[329202562,1718175054597,-500.0,0.00017808,2]
[329202563,1718175054607,-500.0,0.00017808,2]
[329202564,1718175054618,-500.0,0.00017808,2]
[329202565,1718175054629,-500.0,0.00017808,2]
[329202566,1718175054640,-500.0,0.00017808,2]
[329202567,1718175054651,-500.0,0.00017808,2]
[329202568,1718175054662,-500.0,0.00017808,2]
[329202569,1718175054673,-1010.63,0.00017808,2]
[329202570,1718175054683,-522.27,0.00017808,2]
[329202571,1718175054694,-500.0,0.00017808,2]
[329202572,1718175054705,-500.0,0.00017808,2]
[329202573,1718175054716,-500.0,0.00017808,2]
[329202574,1718175054727,-2111.48,0.00017808,2]
[329202575,1718175054738,-6297.57,0.00017808,2]
[329202576,1718175054749,-1308.57,0.00017808,2]
[329202577,1718175054760,-500.0,0.00017808,2]
[329202578,1718175054770,-500.0,0.00017808,2]
[329202579,1718175054781,-1067.37,0.00017808,2]
[329202580,1718175054791,-500.0,0.00017808,2]
[329202581,1718175054802,-500.0,0.00017808,2]
[329202582,1718175054814,-500.0,0.00017808,2]
[329202583,1718175054824,-5181.01,0.00017808,2]
[329202584,1718175054836,-500.0,0.00017808,2]
[329202585,1718175054846,-3909.51,0.00017808,2]
[329202586,1718175054857,-500.0,0.00017808,2]
[329202587,1718175054867,-500.0,0.00017808,2]
[329202588,1718175054878,-500.0,0.00017808,2]
[329202589,1718175054905,-785.84,0.00017808,2]
[329202590,1718175054917,-500.0,0.00017808,2]
[329202591,1718175054927,-1262.57,0.00017808,2]
[329202592,1718175054937,-500.0,0.00017808,2]
[329202593,1718175054949,-599.4,0.00017808,2]
[329202594,1718175054960,-310.85025111,0.00017808,2]
[329202595,1718175054971,-500.0,0.00017808,2]
[329202596,1718175055098,-212.0,0.00017825,2]
[329202597,1718175055109,-500.0,0.00017897,2]
[329202598,1718175055120,-10491.92816074,0.00017898,2]
[329202599,1718175055132,-2434.0672529,0.000179,2]
[329202600,1718175055143,-212.0,0.00017966,2]
[329202601,1718175055154,-238040.19893305,0.00017994,2]
[329202602,1718175055164,-155.02015262,0.00018,2]
[329202603,1718175055175,-632.99963654,0.00018,2]
[329202604,1718175055186,-1355.61945113,0.00018,2]
[329202605,1718175055197,-876.82850055,0.00018,2]
[329202606,1718175055208,-2765.44251206,0.00018,2]
[329202607,1718175055220,-8553.0,0.00018,2]
[329202608,1718175055232,-155.02790502,0.00018,2]
[329202609,1718175055242,-1036.68456979,0.00018,2]
[329202610,1718175055257,-204.17791001,0.00018,2]
[329202611,1718175055268,-1455.28,0.0001808,2]
[329202612,1718175055279,-500.0,0.0001808,2]
[329202613,1718175055290,-1250.67,0.0001808,2]
[329202614,1718175055302,-500.0,0.00018081,2]
[329202615,1718175055313,-1804.69,0.00018082,2]
[329202616,1718175055324,-500.0,0.00018082,2]
[329202617,1718175055336,-500.0,0.00018082,4]
[329202618,1718175055348,-500.0,0.00018082,2]
[329202619,1718175055360,-264.71039901,0.00018082,2]
[329202620,1718175055371,-500.0,0.00018082,2]
[329202621,1718175055383,-250.0,0.00018082,2]
[329202622,1718175055393,-500.0,0.00018082,2]
[329202623,1718175055404,-500.0,0.00018082,2]
[329202624,1718175055415,-500.0,0.00018082,2]
[329202625,1718175055425,-794.15,0.00018082,2]
[329202626,1718175055436,-500.0,0.00018082,2]
[329202627,1718175055446,-509.93422011,0.00018082,2]
[329202628,1718175055457,-500.0,0.00018082,2]
[329202629,1718175055469,-500.0,0.00018082,2]
[329202630,1718175055480,-500.0,0.00018082,2]
[329202631,1718175055490,-500.0,0.00018082,2]
[329202632,1718175055501,-500.0,0.00018082,2]
[329202633,1718175055512,-324.57038224,0.00018082,2]
[329202634,1718175055522,-500.0,0.00018082,2]
[329202635,1718175055532,-1010.63,0.00018082,2]
[329202636,1718175055543,-522.27,0.00018082,2]
[329202637,1718175055553,-500.0,0.00018082,2]
[329202638,1718175055564,-500.0,0.00018082,2]
[329202639,1718175055574,-500.0,0.00018082,2]
[329202640,1718175055585,-2111.48,0.00018082,2]
[329202641,1718175055596,-6297.57,0.00018082,2]
[329202642,1718175055606,-1308.57,0.00018082,2]
[329202643,1718175055617,-500.0,0.00018082,2]
[329202644,1718175055629,-500.0,0.00018082,2]
[329202645,1718175055639,-1067.37,0.00018082,2]
[329202646,1718175055649,-500.0,0.00018082,2]
[329202647,1718175055660,-500.0,0.00018082,2]
[329202648,1718175055670,-500.0,0.00018082,2]
[329202649,1718175055681,-5181.01,0.00018082,2]
[329202650,1718175055691,-588.26120182,0.00018082,2]
[329202651,1718175055702,-3909.51,0.00018082,2]
[329202652,1718175055712,-500.0,0.00018082,2]
[329202653,1718175055723,-500.0,0.00018082,2]
[329202654,1718175055733,-516.53957628,0.00018082,2]
[329202655,1718175055743,-785.84,0.00018082,2]
[329202656,1718175055753,-500.0,0.00018082,2]
[329202657,1718175055766,-1262.57,0.00018082,2]
[329202658,1718175055776,-500.0,0.00018082,2]
[329202659,1718175055787,-599.4,0.00018082,2]
[329202660,1718175055798,-500.0,0.00018082,2]
[329202661,1718175055808,-212.0,0.00018106,2]
[329202662,1718175055819,-212.0,0.00018246,2]
[329202663,1718175055830,-1455.28,0.00018354,2]
[329202664,1718175055840,-500.0,0.00018354,2]
[329202665,1718175055850,-500.0,0.00018355,2]
[329202666,1718175055861,-1250.67,0.00018355,2]
[329202667,1718175055871,-1804.69,0.00018356,2]
[329202668,1718175055882,-500.0,0.00018356,2]
[329202669,1718175055912,-500.0,0.00018356,4]
[329202670,1718175055924,-500.0,0.00018356,2]
[329202671,1718175055934,-500.0,0.00018356,2]
[329202672,1718175055945,-250.0,0.00018356,2]
[329202673,1718175055955,-500.0,0.00018356,2]
[329202674,1718175055965,-500.0,0.00018356,2]
[329202675,1718175055976,-500.0,0.00018356,2]
[329202676,1718175055987,-794.15,0.00018356,2]
[329202677,1718175055997,-500.0,0.00018356,2]
[329202678,1718175056007,-500.0,0.00018356,2]
[329202679,1718175056017,-500.0,0.00018356,2]
[329202680,1718175056027,-500.0,0.00018356,2]
[329202681,1718175056037,-500.0,0.00018356,2]
[329202682,1718175056047,-1010.63,0.00018356,2]
[329202683,1718175056058,-522.27,0.00018356,2]
[329202684,1718175056068,-262.28007136,0.00018356,2]
[329202685,1718175056078,-500.0,0.00018356,2]
[329202686,1718175056089,-170.68782108,0.00018356,2]
[329202687,1718175056099,-2111.48,0.00018356,2]
[329202688,1718175056109,-6297.57,0.00018356,2]
[329202689,1718175056119,-1308.57,0.00018356,2]
[329202690,1718175056131,-500.0,0.00018356,2]
[329202691,1718175056141,-500.0,0.00018356,2]
[329202692,1718175056152,-1067.37,0.00018356,2]
[329202693,1718175056162,-500.0,0.00018356,2]
[329202694,1718175056172,-500.0,0.00018356,2]
[329202695,1718175056183,-318.1967511,0.00018356,2]
[329202696,1718175056194,-5181.01,0.00018356,2]
[329202697,1718175056205,-3909.51,0.00018356,2]
[329202698,1718175056215,-500.0,0.00018356,2]
[329202699,1718175056226,-500.0,0.00018356,2]
[329202700,1718175056237,-785.84,0.00018356,2]
[329202701,1718175056248,-500.0,0.00018356,2]
[329202702,1718175056263,-1262.57,0.00018356,2]
[329202703,1718175056273,-500.0,0.00018356,2]
[329202704,1718175056284,-599.4,0.00018356,2]
[329202705,1718175056296,-500.0,0.00018356,2]
[329202706,1718175056306,-500.0,0.00018475,2]
[329202707,1718175056317,-500.0,0.00018475,2]
[329202708,1718175056328,-500.0,0.00018475,2]
[329202709,1718175056340,-500.0,0.00018475,2]
[329202710,1718175056351,-606.91207968,0.000185,2]
[329202711,1718175056362,-285.48237256,0.0001853,2]
[329202712,1718175056372,-166.666666,0.00018575,2]
[329202713,1718175056384,-1455.28,0.00018628,2]
[329202714,1718175056394,-155.83676024,0.00018628,2]
[329202715,1718175056404,-1250.67,0.00018629,2]
[329202716,1718175056414,-500.0,0.00018629,2]
[329202717,1718175056425,-1804.69,0.0001863,2]
[329202718,1718175056436,-500.0,0.0001863,4]
[329202719,1718175056446,-500.0,0.0001863,2]
[329202720,1718175056456,-500.0,0.0001863,2]
[329202721,1718175056467,-250.0,0.0001863,2]
[329202722,1718175056478,-294.89911392,0.0001863,2]
[329202723,1718175056488,-500.0,0.0001863,2]
[329202724,1718175056498,-500.0,0.0001863,2]
[329202725,1718175056508,-794.15,0.0001863,2]
[329202726,1718175056518,-500.0,0.0001863,2]
[329202727,1718175056529,-566.81306452,0.0001863,2]
[329202728,1718175056539,-500.0,0.0001863,2]
[329202729,1718175056550,-500.0,0.0001863,2]
[329202730,1718175056560,-1010.63,0.0001863,2]
[329202731,1718175056571,-522.27,0.0001863,2]
[329202732,1718175056581,-234.66756291,0.0001863,2]
[329202733,1718175056591,-2111.48,0.0001863,2]
[329202734,1718175056601,-6297.57,0.0001863,2]
[329202735,1718175056611,-1308.57,0.0001863,2]
[329202736,1718175056621,-500.0,0.0001863,2]
[329202737,1718175056633,-500.0,0.0001863,2]
[329202738,1718175056643,-1067.37,0.0001863,2]
[329202739,1718175056654,-500.0,0.0001863,2]
[329202740,1718175056664,-5181.01,0.0001863,2]
[329202741,1718175056674,-3909.51,0.0001863,2]
[329202742,1718175056685,-500.0,0.0001863,2]
[329202743,1718175056695,-785.84,0.0001863,2]
[329202744,1718175056705,-500.0,0.0001863,2]
[329202745,1718175056716,-1262.57,0.0001863,2]
[329202746,1718175056726,-500.0,0.0001863,2]
[329202747,1718175056737,-599.4,0.0001863,2]
[329202748,1718175056747,-250.0,0.0001863,2]
[329202749,1718175056757,-600.0,0.00018674,2]
[329202750,1718175056767,-1086.3,0.00018732,2]
[329202751,1718175056778,-5281.92082876,0.00018824,2]
[329202752,1718175056788,-504.828,0.00018832,2]
[329202753,1718175056798,-1794.97487887,0.00018834,2]
[329202754,1718175056808,-600.0,0.00018868,2]
[329202755,1718175056819,-1086.3,0.00018872,2]
[329202756,1718175056829,-500.0,0.00018899,2]
[329202757,1718175056839,-162.54564181,0.00018901,3]
[329202758,1718175056848,-1455.28,0.00018902,2]
[329202759,1718175056859,-1250.67,0.00018903,2]
[329202760,1718175056869,-500.0,0.00018903,2]
[329202761,1718175056880,-1804.69,0.00018904,2]
[329202762,1718175056894,-500.0,0.00018904,4]
[329202763,1718175056906,-500.0,0.00018904,2]
[329202764,1718175056916,-250.0,0.00018904,2]
[329202765,1718175056926,-500.0,0.00018904,2]
[329202766,1718175056936,-794.15,0.00018904,2]
[329202767,1718175056946,-500.0,0.00018904,2]
[329202768,1718175056956,-500.0,0.00018904,2]
[329202769,1718175056966,-500.0,0.00018904,2]
[329202770,1718175056976,-1010.63,0.00018904,2]
[329202771,1718175056986,-522.27,0.00018904,2]
[329202772,1718175056996,-2111.48,0.00018904,2]
[329202773,1718175057006,-6297.57,0.00018904,2]
[329202774,1718175057016,-1308.57,0.00018904,2]
[329202775,1718175057026,-500.0,0.00018904,2]
[329202776,1718175057036,-500.0,0.00018904,2]
[329202777,1718175057046,-1067.37,0.00018904,2]
[329202778,1718175057056,-500.0,0.00018904,2]
[329202779,1718175057066,-5181.01,0.00018904,2]
[329202780,1718175057076,-3909.51,0.00018904,2]
[329202781,1718175057086,-500.0,0.00018904,2]
[329202782,1718175057097,-785.84,0.00018904,2]
[329202783,1718175057106,-500.0,0.00018904,2]
[329202784,1718175057116,-1262.57,0.00018904,2]
[329202785,1718175057126,-500.0,0.00018904,2]
[329202786,1718175057136,-599.4,0.00018904,2]
[329202787,1718175057146,-1250.67,0.00018993,2]
[329202788,1718175057156,-1250.67,0.00018993,2]
[329202789,1718175057165,-1250.67,0.00018993,2]
[329202790,1718175057175,-1250.67,0.00018993,2]
[329202791,1718175057184,-1250.67,0.00018993,2]
[329202792,1718175057195,-1250.67,0.00018993,2]
[329202793,1718175057205,-500.0,0.00018993,2]
[329202794,1718175057215,-500.0,0.00018993,2]
[329202795,1718175057225,-350.29892282,0.00018993,2]
[329202796,1718175057235,-16790.55058552,0.00018997,2]
[329202797,1718175057256,-1250.67,0.00018999,2]
[329202798,1718175057266,-1250.67,0.00018999,2]
[329202799,1718175057275,-1250.67,0.00018999,2]
[329202800,1718175057285,-1250.67,0.00018999,2]
[329202801,1718175057295,-1250.67,0.00018999,2]
[329202802,1718175057304,-1250.67,0.00018999,2]
[329202803,1718175057314,-1250.85,0.00018999,2]
[329202804,1718175057325,-1000.0,0.00019,2]
[329202805,1718175057336,-533805.79913606,0.00019,3]
[329202806,1718175057346,-65625.58069073,0.00019,2]
[329202807,1718175057357,-163.14541634,0.00019,2]
[329202808,1718175057368,-394.20283113,0.00019,2]
[329202809,1718175057378,-7270.73643792,0.00019,2]
[329202810,1718175057388,-151.0,0.00019,2]
[329202811,1718175057397,-1086.3,0.00019012,2]
[329202812,1718175057407,-36813.75070496,0.00019025,2]
[329202813,1718175057418,-13120.80506957,0.0001903,2]
[329202814,1718175057428,-16426.7477665,0.00019033,2]
[329202815,1718175057438,-13120.80506957,0.00019038,2]
[329202816,1718175057448,-13120.80506957,0.00019043,2]
[329202817,1718175057458,-20131.28429403,0.00019047,2]
[329202818,1718175057468,-15447.46205266,0.00019048,2]
[329202819,1718175057626,-621.17403756,0.00019048,2]
[329202823,1718175899532,-2037.59250395,0.00014114,2]
[329202824,1718175899566,-324.515169,0.00014115,2]
[329202825,1718175899595,-470.0397133,0.00014229,2]
[329202826,1718175899622,-287.0,0.00015113,2]
[329202827,1718175899650,-300.0,0.00015113,2]
[329202828,1718175899681,-1899.06991855,0.00015113,2]
[329202829,1718175899711,-1100.93008145,0.00015113,2]
[329202830,1718175899739,-11100.13884587,0.00015115,2]
[329202831,1718175899773,-181.97694132,0.00015115,2]
[329202832,1718175899805,-509.03647881,0.00015115,2]
[329202833,1718175899837,-5085.68533161,0.00015116,2]
[329202834,1718175899869,-21704.01501614,0.00015117,2]
[329202872,1718176234251,-2037.59250395,0.00014298,2]
[329202873,1718176234268,-1866.1465472,0.00014299,2]
[329202874,1718176234282,-1121.85929932,0.0001479,2]
[329202875,1718176234303,-42119.04264083,0.00014887,2]
[329202876,1718176234316,-419.21318354,0.00014888,2]
[329202877,1718176234327,-7921.82449081,0.00014888,2]
[329202878,1718176234337,-24900.0,0.0001489,2]
[329202879,1718176234348,-155.10508879,0.00015708,2]
[329202880,1718176234401,-273.86158917,0.00015709,2]
[329202881,1718176234411,-927.65343557,0.0001571,2]
[329202882,1718176239735,-778.08317089,0.0001571,2]
[329202883,1718176240217,-976.28894219,0.0001571,2]
[329202884,1718176240231,-155.10919426,0.00016435,2]
[329202885,1718176240252,-155.11275086,0.00016435,2]
[329202886,1718176240264,-1442.15055188,0.00016435,2]
[329202887,1718176240276,-1877.1524641,0.00016435,2]
[329202888,1718176240287,-509.03647881,0.00016435,2]
[329202889,1718176240301,-158.76299279,0.00016436,2]
[329202890,1718176240314,-2642.54173153,0.00016436,2]
[329202891,1718176240326,-500.0,0.00016438,2]
[329202892,1718176240337,-512.37213816,0.00016438,2]
[329202893,1718176240370,-500.0,0.00016438,2]
[329202894,1718176240395,-501.34692839,0.00016438,2]
[329202895,1718176240411,-501.42818865,0.00016438,2]
[329202896,1718176240434,-500.72636467,0.00016438,2]
[329202897,1718176240473,-500.0,0.00016438,2]
[329202898,1718176240487,-500.0,0.00016438,2]
[329202899,1718176240694,-500.0,0.00016438,2]
[329202900,1718176240707,-500.0,0.00016438,2]
[329202901,1718176240730,-504.51495789,0.00016438,2]
[329202902,1718176240742,-500.0,0.00016438,2]
[329202903,1718176240758,-500.0,0.00016438,2]
[329202904,1718176240780,-500.0,0.00016438,2]
[329202905,1718176240805,-304.88108891,0.00016438,2]
[329202906,1718176240819,-500.0,0.00016438,2]
[329202907,1718176240832,-500.0,0.00016438,4]
[329202908,1718176240849,-500.0,0.00016438,2]
[329202909,1718176240862,-500.0,0.00016438,2]
[329202910,1718176240875,-509.30829293,0.00016438,2]
[329202911,1718176240888,-502.24837034,0.00016438,2]
[329202912,1718176240900,-500.0,0.00016438,2]
[329202913,1718176240911,-500.0,0.00016438,2]
[329202914,1718176240927,-500.0,0.00016438,2]
[329202915,1718176240939,-500.0,0.00016438,2]
[329202916,1718176240951,-379.10334995,0.00016438,2]
[329202917,1718176240969,-250.0,0.00016438,2]